bitfinex-derivatives/quotes_ETHF0:USTF0_20250910
["timestamp","ask_amount","ask_price","bid_price","bid_amount"]
[1757490025777,0.6567,4328.2,4328.1,0.7159]
[1757490026782,0.949,4328.2,4328.1,0.7159]
[1757490035980,0.714,4328.2,4328.1,0.7159]
[1757490037487,0.4217,4328.2,4328.1,0.7159]
[1757490037686,0.714,4328.2,4328.1,0.7159]
[1757490038481,0.949,4328.2,4328.1,0.7159]
[1757490049795,0.4095,4328.0,4327.9,0.2977]
[1757490049991,1.72982613,4328.0,4327.9,0.2977]
[1757490050984,1.53952613,4328.0,4327.7,0.2977]
[1757490051188,1.72982613,4327.8,4327.7,0.2977]
[1757490053294,1.72982613,4327.8,4327.7,0.4939]
[1757490054297,0.7065,4327.8,4327.7,0.4939]
[1757490054996,0.2071,4327.8,4327.7,0.92847]
[1757490055299,0.7065,4328.1,4328.0,0.8189]
[1757490055695,0.7065,4328.1,4328.0,0.6974]
[1757490056896,0.2071,4328.7,4328.6,0.6974]
[1757490057093,0.297,4329.0,4328.6,1.42302613]
[1757490057298,0.4411,4329.0,4328.9,0.6974]
[1757490057503,0.7381,4329.0,4328.9,0.6974]
[1757490059799,0.9405,4329.0,4328.9,0.6974]
[1757490060900,0.234,4329.0,4328.9,1.72072613]
[1757490061100,0.234,4329.0,4328.9,0.6974]
[1757490062297,0.234,4329.0,4328.9,1.72072613]
[1757490062701,0.7381,4329.6,4329.5,0.5212]
[1757490062897,0.7381,4329.6,4329.5,0.8189]
[1757490063098,0.9405,4329.6,4329.5,0.8189]
[1757490064199,0.4095,4329.6,4329.5,0.8189]
[1757490064508,0.234,4329.7,4329.6,0.6974]
[1757490064699,0.9405,4329.7,4329.6,0.6974]
[1757490064906,1.96382613,4329.7,4329.1,0.2977]
[1757490065100,0.2071,4329.2,4329.1,0.6974]
[1757490065298,0.297,4329.5,4329.2,0.2977]
[1757490065492,0.7065,4329.5,4329.4,0.6974]
[1757490068308,0.4095,4329.5,4329.4,0.6974]
[1757490069807,0.7065,4329.5,4329.4,0.6974]
[1757490070003,1.72982613,4329.5,4329.4,0.4939]
[1757490070200,1.83072613,4329.5,4329.0,0.1215]
[1757490070601,1.83072613,4329.5,4329.1,0.2977]
[1757490070909,0.297,4329.4,4329.1,0.2977]
[1757490071110,0.7065,4329.4,4329.3,0.1962]
[1757490071298,0.7065,4329.4,4329.3,0.4939]
[1757490073908,0.7065,4329.4,4329.3,0.6974]
[1757490074106,0.4095,4329.4,4329.3,0.6974]
[1757490076106,0.7065,4329.4,4329.3,0.6974]
[1757490077002,0.4095,4329.4,4329.3,0.6974]
[1757490077204,0.2071,4329.4,4329.3,0.6974]
[1757490077405,0.207,4329.6,4329.5,0.5246]
[1757490077604,0.207,4329.6,4329.5,0.822]
[1757490078109,0.234,4329.7,4329.5,0.822]
[1757490078411,0.7102,4330.0,4329.9,0.6939]
[1757490078610,0.9442,4330.0,4329.9,0.6939]
[1757490079406,1.0505,4330.0,4329.6,0.2974]
[1757490079711,1.73352613,4329.7,4329.6,0.6939]
[1757490080007,0.234,4330.0,4329.7,0.2974]
[1757490080403,0.9442,4330.0,4329.9,0.3965]
[1757490080598,0.9442,4330.0,4329.9,0.6939]
[1757490083213,0.441,4330.0,4329.9,0.6939]
[1757490087103,0.6361,4330.0,4329.9,0.6939]
[1757490087307,0.9442,4330.0,4329.9,0.6939]
[1757490089921,0.441,4330.0,4329.9,0.6939]
[1757490090218,0.234,4330.0,4329.9,0.6939]
[1757490091108,0.441,4330.0,4329.9,0.6939]
[1757490091612,0.9442,4330.0,4329.9,0.6939]
[1757490095613,1.0505,4330.0,4329.6,0.2974]
[1757490095821,1.73352613,4329.7,4329.6,0.6939]
[1757490096021,1.96752613,4329.7,4329.6,0.6939]
[1757490096524,1.65942613,4329.7,4329.6,0.6939]
[1757490097024,1.96752613,4329.7,4329.6,0.6939]
[1757490097616,0.441,4329.7,4329.6,0.6939]
[1757490097818,33.286,4330.2,4330.0,0.822]
[1757490097819,0.207,4330.1,4330.0,0.822]
[1757490098118,0.7491,4330.1,4330.0,0.822]
[1757490098320,0.9442,4330.1,4330.0,0.822]
[1757490099417,0.9442,4330.1,4330.0,0.6939]
[1757490102723,0.9442,4330.1,4330.0,0.2974]
[1757490102926,0.4021,4329.7,4329.6,0.4977]
[1757490103123,0.7102,4329.7,4329.6,0.4977]
[1757490103323,0.7102,4329.7,4329.6,0.6939]
[1757490106329,0.207,4329.7,4329.6,0.6939]
[1757490106821,0.3081,4330.0,4329.7,0.2974]
[1757490107027,0.7118,4330.0,4329.9,0.6998]
[1757490114836,0.7118,4330.0,4329.9,0.5028]
[1757490117435,0.7118,4330.0,4329.9,0.3025]
[1757490117729,0.7118,4330.0,4329.5,0.1281]
[1757490117730,0.8187,4330.0,4329.5,0.1281]
[1757490118332,1.93151625,4329.7,4329.6,0.3025]
[1757490118531,1.93151625,4329.7,4329.0,0.1215]
[1757490118532,0.4032,4329.5,4329.4,0.3025]
[1757490118727,0.7206,4329.5,4329.4,0.3025]
[1757490118927,0.7206,4329.5,4329.4,0.4977]
[1757490120634,33.3897,4330.5,4329.5,0.1187]
[1757490120933,0.7206,4330.2,4330.1,0.4977]
[1757490121125,1.23615497,4330.2,4330.1,0.6947]
[1757490122036,0.91875497,4330.2,4330.1,0.6947]
[1757490122234,0.4032,4330.2,4330.1,0.6947]
[1757490122735,0.7206,4330.2,4330.1,0.6947]
[1757490123634,0.4032,4330.2,4330.1,0.6947]
[1757490124437,0.7206,4330.2,4330.1,0.6947]
[1757490124639,0.4032,4330.2,4330.1,0.6947]
[1757490125938,0.7206,4330.2,4330.1,0.6947]
[1757490127633,0.4032,4330.2,4330.1,0.6947]
[1757490128136,0.7206,4330.2,4330.1,0.6947]
[1757490134140,0.7206,4330.2,4330.1,0.3025]
[1757490134642,4.95154,4330.2,4329.6,0.3025]
[1757490134945,0.7206,4329.7,4329.6,0.4977]
[1757490135144,0.9546,4329.7,4329.2,1.65341124]
[1757490135335,0.7206,4329.4,4329.3,0.3025]
[1757490135846,0.2065,4329.4,4329.3,0.6947]
[1757490136050,0.7206,4329.8,4329.7,0.6947]
[1757490136349,1.31301435,4329.8,4329.7,0.3025]
[1757490136641,1.31301435,4329.8,4329.1,0.3025]
[1757490136847,0.7976,4329.8,4329.1,0.3025]
[1757490137849,0.7305,4329.2,4329.1,0.7177]
[1757490138549,0.3108,4329.1,4328.6,0.3029]
[1757490138740,0.4197,4328.7,4328.6,0.7181]
[1757490138942,0.7305,4328.7,4328.6,0.7181]
[1757490139445,0.4197,4328.7,4328.6,0.7181]
[1757490140443,0.4197,4328.7,4328.6,0.5151]
[1757490140444,0.7305,4328.7,4328.6,0.5151]
[1757490140652,0.2103,4328.1,4328.0,0.5339]
[1757490141242,0.2103,4328.1,4328.0,0.8368]
[1757490141747,1.21091625,4328.9,4328.0,0.5339]
[1757490141941,0.7305,4328.8,4328.7,0.5151]
[1757490143551,0.7305,4328.8,4328.7,0.7181]
[1757490144046,0.9645,4328.8,4328.7,0.5151]
[1757490147351,0.9645,4328.8,4328.1,0.3029]
[1757490150646,0.9645,4328.8,4328.3,0.3029]
[1757490150853,0.6537,4328.8,4328.4,0.58257088]
[1757490151047,0.4197,4328.6,4328.5,0.58257088]
[1757490151251,0.7305,4328.6,4328.5,0.58257088]
[1757490152254,0.7305,4328.6,4328.5,1.12477088]
[1757490153050,0.6537,4328.6,4328.5,1.12477088]
[1757490153254,0.4443,4328.6,4328.5,1.12477088]
[1757490154753,0.6537,4328.6,4328.5,1.12477088]
[1757490154946,0.9645,4328.6,4328.5,1.12477088]
[1757490157053,0.6537,4328.6,4328.5,1.12477088]
[1757490158345,0.9645,4328.6,4328.5,1.12477088]
[1757490159546,0.9645,4328.6,4328.5,0.99777088]
[1757490164147,0.9645,4328.6,4328.5,1.12477088]
[1757490166451,0.6537,4328.6,4328.5,1.12477088]
[1757490167553,0.9671,4328.6,4328.5,1.12477088]
[1757490167750,0.9671,4328.6,4328.5,0.79477088]
[1757490172457,1.99042388,4328.6,4328.5,0.79477088]
[1757490173062,1.99042388,4328.6,4328.5,1.00887088]
[1757490173560,1.99042388,4328.6,4328.5,1.13637088]
[1757490174562,0.6537,4328.6,4328.5,1.13637088]
[1757490174961,0.4197,4328.6,4328.5,1.13637088]
[1757490175162,0.6537,4328.6,4328.5,1.13637088]
[1757490175664,0.2103,4328.6,4328.5,1.13637088]
[1757490175861,1.02332388,4328.7,4328.6,0.7064]
[1757490176062,1.25732388,4328.7,4328.6,0.98607088]
[1757490176458,1.46912388,4328.7,4328.6,0.98607088]
[1757490179568,1.76322388,4328.7,4328.6,0.98607088]
[1757490179866,2.51255847,4328.7,4328.6,0.98607088]
[1757490180770,2.19915847,4328.7,4328.6,0.98607088]
[1757490181273,1.96515847,4328.7,4328.6,0.98607088]
[1757490181569,2.19915847,4328.7,4328.6,0.98607088]
[1757490181763,1.25523459,4328.7,4328.6,0.98607088]
[1757490182063,0.2118,4329.1,4329.0,0.8339]
[1757490182255,1.23512388,4329.7,4329.6,0.7064]
[1757490182460,1.98412737,4329.7,4329.6,0.98607088]
[1757490182870,0.74900349,4329.7,4329.6,0.98607088]
[1757490183166,1.48890349,4329.7,4329.6,0.98607088]
[1757490183470,0.9739,4329.7,4329.6,0.98607088]
[1757490184469,1.99722388,4329.7,4329.6,0.98607088]
[1757490190068,1.99722388,4329.7,4329.6,0.77197088]
[1757490192471,1.99722388,4329.7,4329.6,0.98607088]
[1757490192669,1.68382388,4329.7,4329.6,0.98607088]
[1757490194370,1.99722388,4329.7,4329.6,0.98607088]
[1757490196970,1.68382388,4329.7,4329.6,0.98607088]
[1757490197277,1.23512388,4329.7,4329.6,0.98607088]
[1757490197475,1.33102388,4330.0,4329.6,0.98607088]
[1757490197676,0.234,4329.7,4329.6,0.4128]
[1757490197878,0.234,4329.7,4329.6,0.69249658]
[1757490198081,0.234,4329.7,4329.6,0.98439658]
[1757490198082,0.4439,4329.7,4329.6,0.98439658]
[1757490198976,1.46722388,4329.7,4329.6,0.98439658]
[1757490199281,1.98352388,4329.7,4329.6,0.98439658]
[1757490199679,1.98352388,4329.7,4329.6,0.27969658]
[1757490200781,0.9602,4329.7,4329.6,0.27969658]
[1757490200982,1.98352388,4329.7,4329.6,0.27969658]
[1757490205383,1.98352388,4329.7,4329.6,0.57159658]
[1757490205890,1.98352388,4329.7,4329.6,0.27969658]
[1757490207494,1.98352388,4329.7,4329.6,0.57159658]
[1757490208095,2.49843076,4329.7,4329.6,0.57159658]
[1757490208393,2.49843076,4329.7,4329.6,0.27969658]
[1757490210493,2.49843076,4329.7,4329.0,0.1275]
[1757490210697,1.02332388,4329.1,4329.0,0.5448]
[1757490210899,1.25632388,4329.1,4329.0,0.5448]
[1757490211290,1.25632388,4329.1,4329.0,0.8367]
[1757490213595,1.46622388,4329.1,4329.0,0.8367]
[1757490213895,1.67482388,4329.1,4328.5,0.1275]
[1757490214201,1.02332388,4328.6,4328.5,0.1283]
[1757490214394,1.25632388,4328.6,4328.5,0.5456]
[1757490214691,1.25632388,4328.6,4328.5,0.8375]
[1757490214897,1.46622388,4328.6,4328.5,0.8375]
[1757490215397,1.77392388,4328.6,4328.5,0.8375]
[1757490216896,1.98252388,4328.6,4328.5,0.8375]
[1757490218699,0.233,4328.6,4328.5,0.8375]
[1757490219199,1.02332388,4328.8,4328.5,0.5456]
[1757490219399,0.233,4328.7,4328.6,0.7092]
[1757490222698,0.4429,4328.7,4328.6,0.7092]
[1757490225903,0.9592,4328.7,4328.6,0.7092]
[1757490226097,0.6515,4328.7,4328.6,0.7092]
[1757490226513,0.4185,4328.7,4328.6,0.7092]
[1757490226802,0.6515,4328.7,4328.6,0.7092]
[1757490227906,0.2099,4328.7,4328.6,0.7092]
[1757490228206,0.233,4328.7,4328.6,0.7092]
[1757490228401,1.22802388,4329.1,4329.0,0.5457]
[1757490228605,1.96372388,4329.1,4329.0,0.866]
[1757490229503,0.233,4329.1,4329.0,0.866]
[1757490229900,0.4377,4329.1,4329.0,0.866]
[1757490230708,0.233,4329.1,4329.0,0.866]
[1757490232006,1.25632388,4329.1,4329.0,0.866]
[1757490232206,1.46102388,4329.1,4329.0,0.866]
[1757490232808,1.25632388,4329.1,4329.0,0.866]
[1757490234312,1.44445369,4329.1,4329.0,0.866]
[1757490235505,1.64915369,4329.1,4329.0,0.866]
[1757490235813,1.95185369,4329.1,4329.0,0.866]
[1757490236212,2.15185369,4329.1,4329.0,0.5287]
[1757490236412,0.4047,4328.7,4328.6,0.3203]
[1757490236612,1.61615369,4328.7,4328.6,0.3203]
[1757490237011,1.91885369,4328.7,4328.6,0.5287]
[1757490239222,0.7074,4328.3,4328.0,1.65341124]
[1757490239520,0.7074,4328.1,4328.0,0.5287]
[1757490239816,0.7074,4328.1,4328.0,0.866]
[1757490240212,0.4047,4328.1,4328.0,0.866]
[1757490240718,1.44445369,4328.2,4328.0,0.866]
[1757490240719,1.41615369,4328.6,4328.5,0.866]
[1757490240915,1.64915369,4328.6,4328.5,0.866]
[1757490241612,1.41615369,4328.6,4328.5,0.866]
[1757490241820,1.44445369,4328.6,4328.5,0.866]
[1757490242014,1.21145369,4328.8,4328.5,0.5457]
[1757490242216,0.233,4328.7,4328.6,0.7446]
[1757490242616,0.233,4328.7,4328.6,0.4243]
[1757490242816,0.233,4328.7,4328.6,0.7446]
[1757490243216,0.4377,4328.7,4328.6,0.7446]
[1757490243418,0.9404,4328.7,4328.6,0.7446]
[1757490243919,0.9404,4328.7,4328.6,0.3203]
[1757490244320,1.84915369,4328.7,4328.6,0.7446]
[1757490244517,1.64915369,4328.7,4328.6,0.7446]
[1757490244912,33.9894,4329.6,4329.5,0.866]
[1757490245113,34.93115369,4329.6,4329.5,0.866]
[1757490245324,34.72645369,4329.6,4329.5,0.866]
[1757490245521,34.93115369,4329.6,4329.5,0.866]
[1757490246622,33.282,4329.6,4329.5,0.866]
[1757490246818,34.72645369,4329.6,4329.5,0.866]
[1757490247020,1.64915369,4329.6,4329.5,0.866]
[1757490247524,1.84915369,4329.6,4329.5,0.866]
[1757490247723,2.15185369,4329.6,4329.0,1.77481124]
[1757490248025,1.41615369,4329.1,4329.0,0.866]
[1757490249422,1.91885369,4329.1,4329.0,0.866]
[1757490249722,1.21145369,4329.1,4329.0,1.28178]
[1757490251927,1.91885369,4329.1,4329.0,1.28178]
[1757490252128,1.21145369,4329.1,4329.0,1.28178]
[1757490252521,1.41615369,4329.1,4329.0,1.28178]
[1757490253827,1.61615369,4329.1,4329.0,0.866]
[1757490254026,1.91885369,4329.1,4329.0,0.866]
[1757490254730,1.91885369,4329.1,4329.0,0.3203]
[1757490255129,1.91885369,4329.1,4329.0,0.5287]
[1757490255843,1.91885369,4329.1,4329.0,0.7446]
[1757490256025,1.91885369,4329.1,4329.0,0.866]
[1757490257125,1.91885369,4329.1,4329.0,0.7446]
[1757490257335,1.91885369,4329.1,4329.0,0.5287]
[1757490257832,0.7103,4328.7,4328.6,2.27213124]
[1757490258032,1.92175369,4328.7,4328.6,2.27213124]
[1757490258435,1.92175369,4328.7,4328.6,2.47343124]
[1757490259330,1.72255369,4328.7,4328.6,2.47343124]
[1757490259830,1.72255369,4328.7,4328.6,2.79053124]
[1757490260030,1.92175369,4328.7,4328.6,2.79053124]
[1757490260335,1.72255369,4328.7,4328.6,2.79053124]
[1757490260735,1.52725369,4328.7,4328.6,2.79053124]
[1757490260932,1.21145369,4328.7,4328.6,2.79053124]
[1757490261233,1.21145369,4328.7,4328.6,1.13712]
[1757490262131,1.21145369,4328.7,4328.6,5.13712]
[1757490263232,1.52725369,4328.7,4328.6,5.13712]
[1757490263932,1.21145369,4328.7,4328.6,5.13712]
[1757490266730,0.3345,4329.5,4328.6,4.7213]
[1757490266933,0.1953,4329.0,4328.9,2.78524822]
[1757490267130,0.3945,4329.4,4329.3,0.93575]
[1757490267331,0.3945,4329.4,4329.3,1.13705]
[1757490267933,1.60595369,4329.4,4329.3,1.13705]
[1757490268838,1.92175369,4329.4,4329.3,1.13705]
[1757490272341,1.60595369,4329.4,4329.3,1.13705]
[1757490272537,0.1953,4330.0,4329.9,0.7213]
[1757490272739,1.92175369,4330.0,4329.9,0.52]
[1757490273140,1.92175369,4330.0,4329.9,0.3171]
[1757490273342,0.7103,4329.7,4329.6,0.3171]
[1757490273645,0.4972,4329.5,4329.2,1.64919413]
[1757490273843,0.3158,4329.2,4328.8,0.3171]
[1757490274140,0.1953,4328.9,4328.8,0.7213]
[1757490274346,1.40675369,4328.9,4328.8,0.7213]
[1757490276040,1.52725369,4329.2,4329.0,0.1174]
[1757490276245,0.5111,4329.2,4329.1,0.7213]
[1757490276444,0.7103,4329.2,4329.1,0.7213]
[1757490277447,0.7103,4329.2,4329.1,0.52]
[1757490277941,0.7103,4329.2,4329.1,0.7213]
[1757490278148,0.3945,4329.2,4329.1,0.7213]
[1757490279949,0.7103,4329.2,4329.1,0.7213]
[1757490283051,0.7103,4329.2,4329.1,0.52]
[1757490283443,0.3945,4329.2,4329.1,0.7213]
[1757490284148,0.1953,4329.2,4329.1,0.7213]
[1757490284651,0.1953,4329.2,4329.0,2.1840394]
[1757490284652,0.9433,4330.0,4329.9,0.7213]
[1757490284858,0.3945,4329.7,4329.3,1.65059806]
[1757490285154,1.92175369,4329.4,4329.3,0.3171]
[1757490285343,1.92175369,4329.4,4329.1,1.96769806]
[1757490285344,0.3945,4329.3,4329.1,1.96769806]
[1757490285654,0.7103,4329.2,4329.1,0.52]
[1757490285856,0.7103,4329.2,4329.1,0.7213]
[1757490286249,0.7103,4329.2,4329.1,2.37189806]
[1757490287048,0.7103,4329.2,4329.1,0.7213]
[1757490287758,0.7103,4329.2,4329.1,0.3171]
[1757490287956,0.7103,4329.2,4329.0,1.65059806]
[1757490288253,0.7303,4329.1,4329.0,1.94759806]
[1757490288757,0.7303,4329.1,4329.0,0.493]
[1757490290053,0.3021,4329.0,4328.8,1.94759806]
[1757490290258,1.94175369,4328.9,4328.8,1.65059806]
[1757490290654,1.94175369,4328.9,4328.7,1.65059806]
[1757490290856,0.7303,4328.8,4328.7,1.94759806]
[1757490291051,1.94175369,4328.8,4328.7,2.14359806]
[1757490291252,1.94175369,4328.8,4328.7,0.297]
[1757490291554,0.3021,4328.7,4328.5,1.94759806]
[1757490291754,0.3021,4328.7,4328.0,2.19631509]
[1757490291755,0.4188,4328.5,4328.1,1.65059806]
[1757490292059,1.94175369,4328.2,4328.1,1.84659806]
[1757490292255,1.94175369,4328.2,4328.1,0.196]
[1757490292456,0.4282,4328.1,4327.9,1.94759806]
[1757490292657,0.3021,4328.0,4327.9,0.297]
[1757490292858,0.7303,4328.0,4327.9,0.493]
[1757490293560,0.4282,4327.7,4327.6,2.34109806]
[1757490293760,1.94175369,4327.7,4327.6,0.6905]
[1757490294560,1.75397514,4327.7,4327.6,0.6905]
[1757490294754,0.3021,4327.6,4327.1,1.65059806]
[1757490294956,1.75397514,4327.2,4327.1,0.6905]
[1757490295466,1.75397514,4327.2,4327.1,0.297]
[1757490296560,0.7303,4327.2,4327.1,0.297]
[1757490296760,0.2144,4327.2,4327.1,0.6905]
[1757490296957,0.7303,4327.2,4327.1,0.6905]
[1757490297855,1.75397514,4327.2,4326.6,0.297]
[1757490298164,1.54017514,4326.7,4326.6,0.6905]
[1757490298563,1.23807514,4326.7,4326.6,0.6905]
[1757490298765,1.45187514,4326.7,4326.6,0.6905]
[1757490298969,1.75397514,4326.7,4326.6,0.6905]
[1757490299260,1.45187514,4326.7,4326.6,0.6905]
[1757490299667,1.23807514,4327.1,4327.0,0.4151]
[1757490299853,1.23807514,4327.1,4327.0,0.8086]
[1757490299854,0.2144,4327.1,4327.0,0.8086]
[1757490300058,1.55877514,4327.4,4327.1,0.297]
[1757490300366,1.98697514,4327.4,4327.3,0.6905]
[1757490300767,1.02367514,4327.4,4327.3,0.97322836]
[1757490301566,1.23807514,4327.4,4327.3,0.97322836]
[1757490301758,0.3021,4327.9,4327.3,0.67622836]
[1757490301959,0.9633,4327.9,4327.8,0.6905]
[1757490302267,1.98697514,4327.9,4327.8,0.97322836]
[1757490302466,1.98697514,4327.9,4327.8,0.28272836]
[1757490305368,1.98697514,4327.9,4327.8,0.77572836]
[1757490305560,1.98697514,4327.9,4327.8,0.97322836]
[1757490305864,0.4282,4327.9,4327.8,0.97322836]
[1757490306071,0.2144,4328.3,4328.2,0.6905]
[1757490306262,0.2144,4328.3,4328.2,0.97322836]
[1757490306661,1.02367514,4328.4,4328.3,0.80935]
[1757490306969,1.02367514,4328.4,4328.3,1.38907836]
[1757490307961,0.233,4328.6,4328.5,0.1181]
[1757490308161,0.4474,4328.6,4328.5,1.09132836]
[1757490309168,0.4474,4328.6,4328.5,1.09103814]
[1757490309868,0.2144,4328.6,4328.5,1.09103814]
[1757490310171,0.4474,4328.6,4328.5,1.09103814]
[1757490311970,0.6612,4328.6,4328.5,1.09103814]
[1757490313165,34.30067514,4328.7,4328.6,0.297]
[1757490313364,35.26397514,4328.7,4328.6,0.97293814]
[1757490313564,34.96187514,4328.7,4328.6,0.97293814]
[1757490313872,34.74807514,4328.7,4328.6,0.97293814]
[1757490314270,34.30067514,4328.7,4328.6,0.97293814]
[1757490314470,34.53367514,4328.7,4328.6,0.97293814]
[1757490314665,34.30067514,4328.7,4328.6,0.97293814]
[1757490314866,34.53367514,4328.7,4328.6,0.97293814]
[1757490315165,34.74807514,4328.7,4328.6,0.97293814]
[1757490315365,34.96187514,4328.7,4328.6,0.97293814]
[1757490315565,35.26397514,4328.7,4328.6,0.97293814]
[1757490317568,35.26397514,4328.7,4328.6,0.77543814]
[1757490317771,1.98697514,4328.7,4328.6,0.28243814]
[1757490319667,1.98697514,4328.7,4328.6,0.58703814]
[1757490319868,1.98697514,4328.7,4328.6,0.28243814]
[1757490320767,1.98697514,4328.7,4328.6,0.58703814]
[1757490320968,1.98697514,4328.7,4328.6,0.80263814]
[1757490324270,1.98697514,4328.7,4328.6,1.00133814]
[1757490324469,1.75397514,4328.7,4328.6,1.00133814]
[1757490324665,1.46497514,4329.0,4328.9,0.7189]
[1757490324866,1.46497514,4329.0,4328.9,1.00133814]
[1757490325168,1.98417514,4329.0,4328.9,1.00133814]
[1757490325761,1.98417514,4329.0,4328.9,0.58703814]
[1757490325970,2.10117514,4329.0,4328.9,0.28243814]
[1757490326371,2.10117514,4329.0,4328.9,0.58703814]
[1757490326772,1.98417514,4329.0,4328.9,0.58703814]
[1757490326972,1.98417514,4329.0,4328.9,0.80263814]
[1757490327271,1.98417514,4329.0,4328.9,0.28243814]
[1757490327466,2.10117514,4329.0,4328.9,0.28243814]
[1757490328570,2.10117514,4329.0,4328.9,0.58703814]
[1757490328770,2.10117514,4329.0,4328.9,0.28243814]
[1757490329475,6.33217514,4329.0,4328.2,0.3046]
[1757490329678,1.59667514,4328.3,4328.2,0.3046]
[1757490329878,1.82967514,4328.3,4328.2,0.3046]
[1757490332673,1.82967514,4328.3,4328.2,0.5202]
[1757490333375,1.82967514,4328.3,4328.2,0.3046]
[1757490336879,1.82967514,4328.3,4328.1,0.3046]
[1757490337086,0.573,4328.2,4328.1,0.3046]
[1757490339396,0.409,4328.2,4328.1,0.7189]
[1757490339598,0.2083,4328.2,4328.1,0.7189]
[1757490340095,0.409,4328.2,4328.1,0.7189]
[1757490340600,0.573,4328.2,4328.1,0.7189]
[1757490342288,0.409,4328.2,4328.1,0.7189]
[1757490342993,0.164,4328.1,4327.8,0.3046]
[1757490343191,1.59667514,4327.9,4327.8,0.3046]
[1757490345099,1.59667514,4327.9,4327.8,0.5202]
[1757490347200,1.59667514,4327.9,4327.5,0.1181]
[1757490347498,0.5844,4327.2,4327.1,0.2985]
[1757490347694,0.228,4327.3,4327.1,0.7097]
[1757490347999,0.4374,4327.6,4327.5,0.8267]
[1757490348201,0.6525,4327.6,4327.5,0.8267]
[1757490349107,1.67617514,4327.6,4327.5,0.8267]
[1757490350800,1.84107514,4327.6,4327.5,0.8267]
[1757490351302,1.84107514,4327.6,4327.5,0.6112]
[1757490351903,1.67617514,4327.6,4327.5,0.6112]
[1757490352095,1.84107514,4327.6,4327.1,0.2985]
[1757490352406,1.22807514,4327.2,4327.1,0.7097]
[1757490352995,1.44317514,4327.2,4327.1,0.7097]
[1757490353199,1.60807514,4327.2,4327.1,0.7097]
[1757490354693,1.60807514,4327.2,4327.1,0.4942]
[1757490354892,1.60807514,4327.2,4327.1,0.2985]
[1757490356106,1.44317514,4327.2,4327.1,0.4942]
[1757490356403,1.63202405,4327.2,4327.1,0.7097]
[1757490357006,1.41692405,4327.2,4327.1,0.7097]
[1757490357702,1.63202405,4327.2,4327.1,0.7097]
[1757490359109,1.79692405,4327.2,4327.1,0.7097]
[1757490360999,1.79692405,4327.2,4327.1,0.4942]
[1757490362811,1.63202405,4327.2,4327.1,0.7097]
[1757490364512,0.2044,4327.2,4327.1,0.7097]
[1757490365007,0.4195,4327.2,4327.1,0.7097]
[1757490365413,1.63202405,4327.2,4327.1,0.7097]
[1757490365707,1.79692405,4327.2,4327.1,0.7097]
[1757490371912,1.79692405,4327.2,4327.1,0.2985]
[1757490373110,1.21252405,4327.2,4327.1,0.7097]
[1757490373314,0.4195,4327.8,4327.7,0.1957]
[1757490373613,0.233,4327.8,4327.7,0.7097]
[1757490374515,0.4374,4327.8,4327.7,0.7097]
[1757490376608,33.284,4328.2,4328.1,0.4112]
[1757490376911,1.21252405,4328.7,4328.1,0.4112]
[1757490377117,0.233,4328.2,4328.1,0.7326]
[1757490377912,1.21252405,4328.7,4328.1,0.7326]
[1757490378107,0.233,4328.6,4328.5,0.5497]
[1757490378314,0.233,4328.6,4328.5,0.8711]
[1757490378515,0.4371,4328.6,4328.5,0.8711]
[1757490378916,0.6527,4328.6,4328.5,0.8711]
[1757490383219,0.4371,4328.6,4328.5,0.8711]
[1757490386221,0.233,4328.6,4328.5,0.8711]
[1757490390425,1.21252405,4328.7,4328.5,0.8711]
[1757490390622,0.233,4328.6,4328.5,0.8711]
[1757490392323,1.21252405,4328.7,4328.6,0.3214]
[1757490392625,1.44552405,4328.7,4328.6,0.7503]
[1757490393019,2.02992405,4328.7,4328.6,0.3214]
[1757490398026,0.4197,4328.2,4327.6,0.3214]
[1757490398231,0.5844,4327.5,4327.4,0.3214]
[1757490398430,0.8174,4327.5,4327.4,0.3214]
[1757490400436,0.4197,4327.2,4327.1,0.5351]
[1757490400732,1.63222405,4327.2,4327.1,0.5351]
[1757490400932,1.63222405,4327.2,4327.1,0.7503]
[1757490402431,0.2041,4327.2,4327.1,0.7503]
[1757490402639,1.21252405,4327.3,4327.2,0.3214]
[1757490403232,1.41662405,4327.3,4327.2,0.3214]
[1757490403437,1.41662405,4327.3,4327.2,0.7503]
[1757490403934,1.21252405,4327.3,4327.2,0.7503]
[1757490404232,8.847,4329.2,4327.8,0.7503]
[1757490404233,1.41662405,4327.9,4327.8,0.7503]
[1757490404431,1.59562405,4327.9,4327.8,0.7503]
[1757490404631,1.81122405,4327.9,4327.8,0.7503]
[1757490406833,1.63222405,4328.3,4328.2,0.2137]
[1757490407035,1.86522405,4328.3,4328.2,0.5201]
[1757490407238,1.86522405,4328.3,4328.0,0.1208]
[1757490407439,0.5662,4328.2,4328.1,0.3064]
[1757490408837,0.5662,4328.2,4327.6,0.3064]
[1757490409037,1.77772405,4327.7,4327.6,0.514]
[1757490409437,1.61352405,4327.7,4327.6,0.514]
[1757490411336,1.61352405,4327.7,4327.6,0.7297]
[1757490411640,1.41462405,4327.7,4327.6,0.7297]
[1757490411842,1.41462405,4328.0,4327.9,0.4233]
[1757490412041,1.64762405,4328.0,4327.9,0.7297]
[1757490412240,1.84652405,4328.0,4327.9,0.7297]
[1757490413841,1.64762405,4328.0,4327.9,0.7297]
[1757490414436,1.41462405,4328.0,4327.9,0.7297]
[1757490414640,1.44552405,4328.0,4327.9,0.7297]
[1757490415140,1.64762405,4328.0,4327.9,0.7297]
[1757490415339,1.84652405,4328.0,4327.9,0.7297]
[1757490416439,1.82185014,4328.0,4327.9,0.7297]
[1757490416837,1.82185014,4328.0,4327.9,0.514]
[1757490417037,1.82185014,4328.0,4327.9,0.3064]
[1757490417743,1.82185014,4328.0,4327.9,0.514]
[1757490420639,1.58885014,4328.0,4327.9,0.514]
[1757490420844,1.65765014,4328.0,4327.9,0.514]
[1757490421149,1.42465014,4328.0,4327.9,0.514]